[Event "*** Titled Tuesday Blitz"]
[Site "Chess.com"]
[Date "2020.05.26"]
[Round "4"]
[White "letsgoband"]
[Black "levallem"]
[Result "1/2-1/2"]
[WhiteElo "2381"]
[BlackElo "2161"]
[TimeControl "180+1"]
[EndTime "10:37:54 PDT"]
[Termination "Game drawn by repetition"]

1. e4 {[%clk 0:03:00.9]} 1... c5 {[%clk 0:02:59.9]} 2. Nf3 {[%clk 0:03:01.1]}
2... Nc6 {[%clk 0:02:57.8]} 3. Bb5 {[%clk 0:03:00.5]} 3... g6 {[%clk 0:02:56.5]}
4. Bxc6 {[%clk 0:03:00.4]} 4... dxc6 {[%clk 0:02:56.5]} 5. O-O {[%clk
0:03:01.3]} 5... Bg7 {[%clk 0:02:56.4]} 6. d3 {[%clk 0:03:01.9]} 6... e5 {[%clk
0:02:55.2]} 7. Be3 {[%clk 0:03:00.1]} 7... b6 {[%clk 0:02:54.9]} 8. a4 {[%clk
0:02:59]} 8... a5 {[%clk 0:02:53.2]} 9. Na3 {[%clk 0:02:54.5]} 9... f6 {[%clk
0:02:49]} 10. Nc4 {[%clk 0:02:53.5]} 10... Be6 {[%clk 0:02:48.1]} 11. Nfd2
{[%clk 0:02:53.8]} 11... Bh6 {[%clk 0:02:46.2]} 12. Bxh6 {[%clk 0:02:48.2]}
12... Nxh6 {[%clk 0:02:47.1]} 13. f4 {[%clk 0:02:35.6]} 13... exf4 {[%clk
0:02:45.8]} 14. Rxf4 {[%clk 0:02:34.5]} 14... O-O {[%clk 0:02:45.9]} 15. Kh1
{[%clk 0:02:25.4]} 15... b5 {[%clk 0:02:43.4]} 16. Ne3 {[%clk 0:02:16.6]} 16...
Qd4 {[%clk 0:02:38.5]} 17. Qe2 {[%clk 0:02:10]} 17... Qxb2 {[%clk 0:02:31.7]}
18. Rb1 {[%clk 0:02:10.1]} 18... Qe5 {[%clk 0:02:31.4]} 19. Rff1 {[%clk
0:02:05.8]} 19... Rab8 {[%clk 0:02:20.4]} 20. Nb3 {[%clk 0:01:43.5]} 20... Bxb3
{[%clk 0:02:16.3]} 21. cxb3 {[%clk 0:01:37.4]} 21... Rfd8 {[%clk 0:02:06.6]} 22.
h3 {[%clk 0:01:22.7]} 22... Kg7 {[%clk 0:01:58.9]} 23. Rf3 {[%clk 0:01:22.3]}
23... bxa4 {[%clk 0:01:53.4]} 24. Nc4 {[%clk 0:01:21]} 24... Qc3 {[%clk
0:01:45.7]} 25. Rd1 {[%clk 0:00:59.4]} 25... axb3 {[%clk 0:01:42.6]} 26. e5
{[%clk 0:00:54.9]} 26... fxe5 {[%clk 0:01:33.6]} 27. d4 {[%clk 0:00:54.9]} 27...
Qc2 {[%clk 0:01:11.5]} 28. Qxe5+ {[%clk 0:00:54.2]} 28... Kg8 {[%clk 0:01:05.2]}
29. Qe6+ {[%clk 0:00:48]} 29... Kg7 {[%clk 0:00:51.3]} 30. Qe7+ {[%clk
0:00:43.6]} 30... Kg8 {[%clk 0:00:50.1]} 31. Qe6+ {[%clk 0:00:34.4]} 31... Kg7
{[%clk 0:00:42.3]} 32. Qe5+ {[%clk 0:00:17.6]} 32... Kg8 {[%clk 0:00:41.8]} 33.
Qe6+ {[%clk 0:00:17.2]} 1/2-1/2

[Event "*** Titled Tuesday Blitz"]
[Site "Chess.com"]
[Date "2020.05.26"]
[Round "4"]
[White "Bacyanide"]
[Black "Goryachkina"]
[Result "0-1"]
[WhiteElo "2463"]
[BlackElo "2641"]
[TimeControl "180+1"]
[EndTime "10:37:56 PDT"]
[Termination "Goryachkina won by resignation"]

1. d4 {[%clk 0:03:00.9]} 1... d5 {[%clk 0:02:59.5]} 2. Nf3 {[%clk 0:03:00.9]}
2... Nf6 {[%clk 0:02:59.1]} 3. Bf4 {[%clk 0:03:00.8]} 3... c5 {[%clk 0:02:57.6]}
4. e3 {[%clk 0:03:00.2]} 4... Nc6 {[%clk 0:02:51.1]} 5. Nbd2 {[%clk 0:02:59.3]}
5... cxd4 {[%clk 0:02:46.2]} 6. exd4 {[%clk 0:02:58]} 6... Qb6 {[%clk
0:02:46.4]} 7. Nb3 {[%clk 0:02:52.5]} 7... Bg4 {[%clk 0:02:45.8]} 8. c3 {[%clk
0:02:42.3]} 8... e6 {[%clk 0:02:40.5]} 9. Bd3 {[%clk 0:02:35.2]} 9... Be7 {[%clk
0:02:30.6]} 10. O-O {[%clk 0:02:34.3]} 10... O-O {[%clk 0:02:29.9]} 11. Qe2
{[%clk 0:02:29.2]} 11... a5 {[%clk 0:02:22]} 12. Rab1 {[%clk 0:02:13.4]} 12...
a4 {[%clk 0:02:13.4]} 13. Nbd2 {[%clk 0:02:11.2]} 13... Qd8 {[%clk 0:01:43.1]}
14. a3 {[%clk 0:02:07.6]} 14... Bd6 {[%clk 0:01:39.5]} 15. Qe3 {[%clk
0:02:03.7]} 15... Bxf4 {[%clk 0:01:06.8]} 16. Qxf4 {[%clk 0:02:02.4]} 16... Bh5
{[%clk 0:01:06.8]} 17. Ne5 {[%clk 0:01:58.7]} 17... Nxe5 {[%clk 0:01:03.4]} 18.
Qxe5 {[%clk 0:01:08.3]} 18... Bg6 {[%clk 0:01:02.3]} 19. Bxg6 {[%clk 0:01:06.7]}
19... hxg6 {[%clk 0:01:03.2]} 20. Nf3 {[%clk 0:01:01.5]} 20... Nd7 {[%clk
0:00:54]} 21. Qf4 {[%clk 0:00:54.6]} 21... Qf6 {[%clk 0:00:51.6]} 22. Qc7 {[%clk
0:00:46.9]} 22... Rfd8 {[%clk 0:00:38.9]} 23. Qxb7 {[%clk 0:00:42.2]} 23... g5
{[%clk 0:00:37.5]} 24. h3 {[%clk 0:00:39.3]} 24... Qf4 {[%clk 0:00:36.2]} 25.
Qb5 {[%clk 0:00:35.1]} 25... Nf6 {[%clk 0:00:29.8]} 26. Qe2 {[%clk 0:00:34.8]}
26... g4 {[%clk 0:00:28.2]} 27. hxg4 {[%clk 0:00:27.4]} 27... Qxg4 {[%clk
0:00:22.7]} 28. Ne5 {[%clk 0:00:25.5]} 28... Qxe2 {[%clk 0:00:21.7]} 0-1

[Event "*** Titled Tuesday Blitz"]
[Site "Chess.com"]
[Date "2020.05.26"]
[Round "4"]
[White "Lector118"]
[Black "Richarzard69"]
[Result "1/2-1/2"]
[WhiteElo "2404"]
[BlackElo "2236"]
[TimeControl "180+1"]
[EndTime "10:37:56 PDT"]
[Termination "Game drawn by repetition"]

1. d4 {[%clk 0:03:00.9]} 1... Nf6 {[%clk 0:02:58.8]} 2. c4 {[%clk 0:02:59.7]}
2... c5 {[%clk 0:02:58.9]} 3. d5 {[%clk 0:02:58.5]} 3... e6 {[%clk 0:02:59.2]}
4. Nc3 {[%clk 0:02:57.8]} 4... exd5 {[%clk 0:02:59.4]} 5. cxd5 {[%clk
0:02:58.7]} 5... d6 {[%clk 0:02:59.9]} 6. Nf3 {[%clk 0:02:58.2]} 6... g6 {[%clk
0:03:00.1]} 7. Bf4 {[%clk 0:02:58.1]} 7... a6 {[%clk 0:02:58.6]} 8. a4 {[%clk
0:02:57.4]} 8... Bg7 {[%clk 0:02:58.3]} 9. e3 {[%clk 0:02:58]} 9... O-O {[%clk
0:02:58.1]} 10. h3 {[%clk 0:02:58.5]} 10... Nh5 {[%clk 0:02:57.9]} 11. Bh2
{[%clk 0:02:58.2]} 11... f5 {[%clk 0:02:57.6]} 12. Be2 {[%clk 0:02:58.7]} 12...
f4 {[%clk 0:02:57.9]} 13. O-O {[%clk 0:02:55.9]} 13... Nd7 {[%clk 0:02:54]} 14.
Re1 {[%clk 0:02:51.5]} 14... fxe3 {[%clk 0:02:34.3]} 15. fxe3 {[%clk 0:02:52.4]}
15... Qe7 {[%clk 0:02:30.8]} 16. Bf1 {[%clk 0:02:42.3]} 16... Ne5 {[%clk
0:02:25.3]} 17. Nd2 {[%clk 0:02:34]} 17... Qh4 {[%clk 0:02:02.2]} 18. Qe2 {[%clk
0:02:25.9]} 18... Bf5 {[%clk 0:01:31.2]} 19. Nf3 {[%clk 0:02:13.2]} 19... Nxf3+
{[%clk 0:01:25.2]} 20. gxf3 {[%clk 0:02:14.1]} 20... Bxh3 {[%clk 0:01:15]} 21.
Bxh3 {[%clk 0:02:12.6]} 21... Qxh3 {[%clk 0:01:14]} 22. f4 {[%clk 0:02:00.2]}
22... Rae8 {[%clk 0:00:57.7]} 23. Nd1 {[%clk 0:01:33.3]} 23... Nxf4 {[%clk
0:00:45.9]} 24. Bxf4 {[%clk 0:01:27.8]} 24... Rxf4 {[%clk 0:00:43.9]} 25. exf4
{[%clk 0:01:28.7]} 25... Bd4+ {[%clk 0:00:31]} 26. Nf2 {[%clk 0:01:28.3]} 26...
Qg3+ {[%clk 0:00:23.8]} 27. Kf1 {[%clk 0:01:27.4]} 27... Rxe2 {[%clk 0:00:18]}
28. Rxe2 {[%clk 0:01:28.3]} 28... Qf3 {[%clk 0:00:13.5]} 29. Ra3 {[%clk
0:01:25.4]} 29... Qxf4 {[%clk 0:00:12.2]} 30. Rh3 {[%clk 0:01:23.2]} 30... Qc1+
{[%clk 0:00:10.8]} 31. Kg2 {[%clk 0:01:22.7]} 31... Qg5+ {[%clk 0:00:11.1]} 32.
Kf1 {[%clk 0:01:19.7]} 32... Qc1+ {[%clk 0:00:10.6]} 33. Re1 {[%clk 0:01:05.8]}
33... Qf4 {[%clk 0:00:10]} 34. Re8+ {[%clk 0:00:57.1]} 34... Kg7 {[%clk
0:00:09]} 35. Re7+ {[%clk 0:00:56.8]} 35... Kg8 {[%clk 0:00:06.5]} 36. Re2
{[%clk 0:00:56.9]} 36... Qc1+ {[%clk 0:00:06]} 1/2-1/2

[Event "*** Titled Tuesday Blitz"]
[Site "Chess.com"]
[Date "2020.05.26"]
[Round "4"]
[White "seastar"]
[Black "MilanJeremic"]
[Result "0-1"]
[WhiteElo "2016"]
[BlackElo "2240"]
[TimeControl "180+1"]
[EndTime "10:37:57 PDT"]
[Termination "MilanJeremic won on time"]

1. d4 {[%clk 0:02:34.7]} 1... d5 {[%clk 0:02:57.2]} 2. c4 {[%clk 0:02:34.6]}
2... c6 {[%clk 0:02:56.8]} 3. cxd5 {[%clk 0:02:34.9]} 3... cxd5 {[%clk 0:02:56]}
4. Nc3 {[%clk 0:02:35.3]} 4... Nc6 {[%clk 0:02:55.8]} 5. Bf4 {[%clk 0:02:34.4]}
5... e6 {[%clk 0:02:53]} 6. e3 {[%clk 0:02:31.2]} 6... Bd6 {[%clk 0:02:49.1]} 7.
Bxd6 {[%clk 0:02:30.1]} 7... Qxd6 {[%clk 0:02:48.5]} 8. f4 {[%clk 0:02:30.5]}
8... Nf6 {[%clk 0:02:47.7]} 9. Nf3 {[%clk 0:02:28.8]} 9... Qb4 {[%clk
0:02:45.3]} 10. Qd2 {[%clk 0:02:19.8]} 10... O-O {[%clk 0:02:42.4]} 11. Bd3
{[%clk 0:02:16.3]} 11... g6 {[%clk 0:02:39.2]} 12. Ne5 {[%clk 0:02:11.2]} 12...
Bd7 {[%clk 0:02:19.1]} 13. O-O {[%clk 0:02:08.8]} 13... Rac8 {[%clk 0:02:16]}
14. Rac1 {[%clk 0:01:50.5]} 14... Qe7 {[%clk 0:02:10.2]} 15. a3 {[%clk
0:01:44.6]} 15... Na5 {[%clk 0:01:59.2]} 16. Qd1 {[%clk 0:01:39.5]} 16... Nc4
{[%clk 0:01:55]} 17. Nxc4 {[%clk 0:01:32.8]} 17... dxc4 {[%clk 0:01:54.6]} 18.
Bb1 {[%clk 0:01:33.1]} 18... Bc6 {[%clk 0:01:52.3]} 19. e4 {[%clk 0:01:31.2]}
19... Rfd8 {[%clk 0:01:48.9]} 20. e5 {[%clk 0:01:15.7]} 20... Ne8 {[%clk
0:01:46.6]} 21. Be4 {[%clk 0:01:07.8]} 21... Qd7 {[%clk 0:01:38.6]} 22. Bxc6
{[%clk 0:01:05]} 22... Rxc6 {[%clk 0:01:38.3]} 23. Qf3 {[%clk 0:00:24.4]} 23...
Qxd4+ {[%clk 0:01:37.3]} 24. Kh1 {[%clk 0:00:24.4]} 24... Qd3 {[%clk 0:01:29.4]}
25. Ne4 {[%clk 0:00:19.7]} 25... Qxf3 {[%clk 0:01:28]} 26. Rxf3 {[%clk
0:00:20.6]} 26... Kg7 {[%clk 0:01:21.2]} 27. h3 {[%clk 0:00:20.6]} 27... b5
{[%clk 0:01:17.5]} 28. Nc3 {[%clk 0:00:17.1]} 28... a6 {[%clk 0:01:15.6]} 29.
Ne4 {[%clk 0:00:16.4]} 29... Rc7 {[%clk 0:01:14.7]} 30. Rfc3 {[%clk 0:00:14.7]}
30... Rcd7 {[%clk 0:01:14.4]} 31. Kh2 {[%clk 0:00:14.6]} 31... Rd4 {[%clk
0:01:13.7]} 32. Nc5 {[%clk 0:00:13.3]} 32... Nc7 {[%clk 0:01:10.7]} 33. Kg3
{[%clk 0:00:11.7]} 33... h5 {[%clk 0:01:09.4]} 34. h4 {[%clk 0:00:10.6]} 34...
R8d5 {[%clk 0:01:08.9]} 35. b4 {[%clk 0:00:08.2]} 35... Rd2 {[%clk 0:01:04]} 36.
Rb3 {[%clk 0:00:09.1]} 36... cxb3 {[%clk 0:01:02.1]} 0-1

[Event "*** Titled Tuesday Blitz"]
[Site "Chess.com"]
[Date "2020.05.26"]
[Round "4"]
[White "Gromes7"]
[Black "savagemedusa"]
[Result "0-1"]
[WhiteElo "2005"]
[BlackElo "2234"]
[TimeControl "180+1"]
[EndTime "10:37:59 PDT"]
[Termination "savagemedusa won by checkmate"]

1. d4 {[%clk 0:03:00.1]} 1... f5 {[%clk 0:02:58.2]} 2. g3 {[%clk 0:02:59.2]}
2... Nf6 {[%clk 0:02:56]} 3. Bg2 {[%clk 0:02:59.6]} 3... e6 {[%clk 0:02:53.3]}
4. Nf3 {[%clk 0:03:00]} 4... d6 {[%clk 0:02:48.6]} 5. O-O {[%clk 0:02:59.9]}
5... Be7 {[%clk 0:02:48.5]} 6. c4 {[%clk 0:03:00.1]} 6... O-O {[%clk 0:02:46]}
7. Nc3 {[%clk 0:03:00]} 7... a5 {[%clk 0:02:44.6]} 8. Re1 {[%clk 0:02:34]} 8...
Ne4 {[%clk 0:02:32.9]} 9. Qc2 {[%clk 0:02:27.9]} 9... Nc6 {[%clk 0:02:22.2]} 10.
Nxe4 {[%clk 0:02:20.4]} 10... Nb4 {[%clk 0:02:16.8]} 11. Qb1 {[%clk 0:02:19.3]}
11... fxe4 {[%clk 0:02:13.4]} 12. Qxe4 {[%clk 0:02:15.4]} 12... d5 {[%clk
0:01:53.7]} 13. Qb1 {[%clk 0:01:47.9]} 13... dxc4 {[%clk 0:01:43.1]} 14. a3
{[%clk 0:01:46.7]} 14... Nc6 {[%clk 0:01:36.7]} 15. Be3 {[%clk 0:01:41]} 15...
Bf6 {[%clk 0:01:28.3]} 16. Rd1 {[%clk 0:01:38.2]} 16... b5 {[%clk 0:01:23.9]}
17. Ne5 {[%clk 0:01:29.3]} 17... Bxe5 {[%clk 0:00:47.5]} 18. dxe5 {[%clk
0:01:27.6]} 18... Qe8 {[%clk 0:00:46.4]} 19. Bc5 {[%clk 0:01:14.2]} 19... Rf5
{[%clk 0:00:41.1]} 20. Bxc6 {[%clk 0:01:03.2]} 20... Qxc6 {[%clk 0:00:38.5]} 21.
Rd8+ {[%clk 0:01:03.1]} 21... Kf7 {[%clk 0:00:38.1]} 22. Rf8+ {[%clk 0:01:03]}
22... Kg6 {[%clk 0:00:38.7]} 23. g4 {[%clk 0:00:55.3]} 23... Bb7 {[%clk
0:00:19.8]} 24. gxf5+ {[%clk 0:00:53.5]} 24... Kh6 {[%clk 0:00:19.5]} 25. Be3+
{[%clk 0:00:46.9]} 25... Kh5 {[%clk 0:00:19]} 26. Qf1 {[%clk 0:00:32.1]} 26...
Qh1# {[%clk 0:00:13.4]} 0-1

[Event "*** Titled Tuesday Blitz"]
[Site "Chess.com"]
[Date "2020.05.26"]
[Round "4"]
[White "Xtrmntr78"]
[Black "SirMittensofMittensville"]
[Result "0-1"]
[WhiteElo "2439"]
[BlackElo "2614"]
[TimeControl "180+1"]
[EndTime "10:38:00 PDT"]
[Termination "SirMittensofMittensville won by resignation"]

1. c4 {[%clk 0:03:00.9]} 1... e5 {[%clk 0:02:58.9]} 2. Nc3 {[%clk 0:03:00.2]}
2... Bb4 {[%clk 0:02:59.1]} 3. Nd5 {[%clk 0:02:59]} 3... Be7 {[%clk 0:02:59.3]}
4. Nf3 {[%clk 0:02:59.2]} 4... d6 {[%clk 0:02:57.4]} 5. g3 {[%clk 0:02:58.4]}
5... Nf6 {[%clk 0:02:56.8]} 6. Bg2 {[%clk 0:02:55.5]} 6... Nxd5 {[%clk
0:02:54.7]} 7. cxd5 {[%clk 0:02:55.2]} 7... O-O {[%clk 0:02:55.6]} 8. O-O {[%clk
0:02:51.8]} 8... f5 {[%clk 0:02:52.4]} 9. d4 {[%clk 0:02:48.7]} 9... e4 {[%clk
0:02:51]} 10. Nd2 {[%clk 0:02:48.6]} 10... Nd7 {[%clk 0:02:49.8]} 11. f3 {[%clk
0:02:47.8]} 11... exf3 {[%clk 0:02:26.9]} 12. Bxf3 {[%clk 0:02:43.2]} 12... Bg5
{[%clk 0:02:01.1]} 13. Nc4 {[%clk 0:02:40.1]} 13... Nb6 {[%clk 0:01:56]} 14. Na5
{[%clk 0:02:35.3]} 14... Rb8 {[%clk 0:01:47]} 15. Bxg5 {[%clk 0:02:30.4]} 15...
Qxg5 {[%clk 0:01:46.5]} 16. Rc1 {[%clk 0:02:30.7]} 16... f4 {[%clk 0:01:30.9]}
17. Kh1 {[%clk 0:02:24.3]} 17... fxg3 {[%clk 0:01:27]} 18. Rg1 {[%clk
0:02:23.5]} 18... Rf7 {[%clk 0:01:08.3]} 19. Rxg3 {[%clk 0:02:21.6]} 19... Qh6
{[%clk 0:01:05.4]} 20. Rc3 {[%clk 0:02:14.9]} 20... Bf5 {[%clk 0:00:56.4]} 21.
Qc1 {[%clk 0:02:03.5]} 21... Qh4 {[%clk 0:00:47.2]} 22. Rxc7 {[%clk 0:01:59.2]}
22... Rbf8 {[%clk 0:00:47.3]} 23. Rxf7 {[%clk 0:01:50.5]} 23... Rxf7 {[%clk
0:00:48.2]} 24. Nc4 {[%clk 0:01:41.6]} 24... Rc7 {[%clk 0:00:39.9]} 25. b3
{[%clk 0:01:33.2]} 25... Be4 {[%clk 0:00:40.1]} 26. Qe3 {[%clk 0:01:25.9]} 26...
Re7 {[%clk 0:00:39.3]} 27. Nxd6 {[%clk 0:01:18.5]} 27... Nxd5 {[%clk 0:00:39.5]}
28. Qg5 {[%clk 0:01:13.9]} 28... Bxf3+ {[%clk 0:00:34.8]} 29. exf3 {[%clk
0:01:07.1]} 29... Re1+ {[%clk 0:00:32.4]} 30. Kg2 {[%clk 0:01:07]} 30... Nf4+
{[%clk 0:00:20.7]} 31. Kf2 {[%clk 0:00:56]} 31... Nh3+ {[%clk 0:00:20.9]} 32.
Kxe1 {[%clk 0:00:36.4]} 32... Nxg5 {[%clk 0:00:21.8]} 33. Nf5 {[%clk 0:00:36.1]}
33... Qf4 {[%clk 0:00:20.3]} 0-1

[Event "*** Titled Tuesday Blitz"]
[Site "Chess.com"]
[Date "2020.05.26"]
[Round "4"]
[White "Twitch_ElhamBlitz05"]
[Black "diablanni"]
[Result "1-0"]
[WhiteElo "2597"]
[BlackElo "2318"]
[TimeControl "180+1"]
[EndTime "10:38:01 PDT"]
[Termination "Twitch_ElhamBlitz05 won by resignation"]

1. e4 {[%clk 0:03:00.9]} 1... c5 {[%clk 0:02:59.6]} 2. Nf3 {[%clk 0:03:00.3]}
2... Nc6 {[%clk 0:02:59.3]} 3. d4 {[%clk 0:03:01.2]} 3... cxd4 {[%clk 0:02:59]}
4. Nxd4 {[%clk 0:03:02.1]} 4... g6 {[%clk 0:02:59.1]} 5. Nc3 {[%clk 0:03:02.7]}
5... Bg7 {[%clk 0:02:58.3]} 6. Be3 {[%clk 0:03:03.3]} 6... Nf6 {[%clk
0:02:56.9]} 7. Bc4 {[%clk 0:03:03.9]} 7... O-O {[%clk 0:02:56]} 8. Bb3 {[%clk
0:03:04]} 8... d6 {[%clk 0:02:55.3]} 9. f3 {[%clk 0:03:03.8]} 9... Bd7 {[%clk
0:02:54.3]} 10. Qd2 {[%clk 0:03:03.3]} 10... Rc8 {[%clk 0:02:51.6]} 11. O-O-O
{[%clk 0:03:01.3]} 11... Ne5 {[%clk 0:02:49.4]} 12. h4 {[%clk 0:03:00.6]} 12...
h5 {[%clk 0:02:46.1]} 13. g4 {[%clk 0:02:59.8]} 13... hxg4 {[%clk 0:02:04.3]}
14. h5 {[%clk 0:02:59.8]} 14... Nxh5 {[%clk 0:02:03.4]} 15. Bh6 {[%clk
0:02:54.6]} 15... e6 {[%clk 0:01:07.2]} 16. Bxg7 {[%clk 0:02:49.8]} 16... Kxg7
{[%clk 0:01:06.6]} 17. Rdg1 {[%clk 0:02:36.7]} 17... Rh8 {[%clk 0:00:55.2]} 18.
fxg4 {[%clk 0:02:05.3]} 18... Nf6 {[%clk 0:00:54.6]} 19. Qf4 {[%clk 0:02:05.9]}
19... Nexg4 {[%clk 0:00:42]} 20. Qxd6 {[%clk 0:01:50.8]} 20... Bc6 {[%clk
0:00:32.6]} 21. Qxe6 {[%clk 0:01:07.2]} 21... Qc7 {[%clk 0:00:10.3]} 22. e5
{[%clk 0:00:28.4]} 22... Nxe5 {[%clk 0:00:09.7]} 23. Nf5+ {[%clk 0:00:26.6]}
23... Kg8 {[%clk 0:00:08.5]} 24. Rxh8+ {[%clk 0:00:26.3]} 24... Kxh8 {[%clk
0:00:08.2]} 25. Qxf6+ {[%clk 0:00:26.7]} 1-0

[Event "*** Titled Tuesday Blitz"]
[Site "Chess.com"]
[Date "2020.05.26"]
[Round "4"]
[White "Karinaa87"]
[Black "vladislavkovalev"]
[Result "0-1"]
[WhiteElo "2550"]
[BlackElo "2877"]
[TimeControl "180+1"]
[EndTime "10:38:06 PDT"]
[Termination "vladislavkovalev won by resignation"]

1. d4 {[%clk 0:03:00.9]} 1... Nf6 {[%clk 0:03:00.3]} 2. c4 {[%clk 0:03:00.3]}
2... e5 {[%clk 0:03:00.7]} 3. dxe5 {[%clk 0:02:58.6]} 3... Ng4 {[%clk 0:03:01]}
4. Nf3 {[%clk 0:02:54.3]} 4... Bc5 {[%clk 0:03:00.4]} 5. e3 {[%clk 0:02:54.7]}
5... Nc6 {[%clk 0:03:01.3]} 6. Nc3 {[%clk 0:02:49.2]} 6... O-O {[%clk
0:02:57.5]} 7. Be2 {[%clk 0:02:47.8]} 7... Re8 {[%clk 0:02:57.4]} 8. h3 {[%clk
0:02:44]} 8... Ngxe5 {[%clk 0:02:57.7]} 9. Nxe5 {[%clk 0:02:44.1]} 9... Nxe5
{[%clk 0:02:58.6]} 10. O-O {[%clk 0:02:42.5]} 10... a5 {[%clk 0:02:58.7]} 11.
Na4 {[%clk 0:02:37.2]} 11... Bf8 {[%clk 0:02:58.1]} 12. b3 {[%clk 0:02:36.1]}
12... Ra6 {[%clk 0:02:57.9]} 13. Bb2 {[%clk 0:02:35.5]} 13... Rh6 {[%clk
0:02:58.1]} 14. Nc3 {[%clk 0:02:28.6]} 14... d6 {[%clk 0:02:53.5]} 15. f4 {[%clk
0:02:25]} 15... Nc6 {[%clk 0:02:51.8]} 16. Nd5 {[%clk 0:02:21.5]} 16... Bf5
{[%clk 0:02:11.8]} 17. Bg4 {[%clk 0:02:05.9]} 17... Bxg4 {[%clk 0:01:59.6]} 18.
Qxg4 {[%clk 0:02:03.5]} 18... Nb4 {[%clk 0:02:00.1]} 19. Nxb4 {[%clk 0:01:54.1]}
19... axb4 {[%clk 0:02:01]} 20. Rae1 {[%clk 0:01:50.2]} 20... Rhe6 {[%clk
0:01:57.8]} 21. Qf3 {[%clk 0:01:46.2]} 21... Re4 {[%clk 0:01:58.1]} 22. f5
{[%clk 0:01:43.3]} 22... f6 {[%clk 0:01:58.3]} 23. Bd4 {[%clk 0:01:41]} 23... b6
{[%clk 0:01:52.1]} 24. Qg3 {[%clk 0:01:34.4]} 24... Kh8 {[%clk 0:01:47.5]} 25.
Rf4 {[%clk 0:01:33.3]} 25... Rxf4 {[%clk 0:01:34.4]} 26. Qxf4 {[%clk 0:01:33]}
26... c5 {[%clk 0:01:32.2]} 27. Ba1 {[%clk 0:01:30.6]} 27... Qa8 {[%clk
0:01:32.8]} 28. Qf2 {[%clk 0:01:26.7]} 28... d5 {[%clk 0:01:30]} 29. cxd5 {[%clk
0:01:23.2]} 29... Qxd5 {[%clk 0:01:30.9]} 30. e4 {[%clk 0:01:23.4]} 30... Rxe4
{[%clk 0:01:29.5]} 31. Rxe4 {[%clk 0:01:15]} 31... Qxe4 {[%clk 0:01:30.4]} 32.
Bb2 {[%clk 0:01:06.5]} 32... Qb1+ {[%clk 0:01:01.4]} 33. Kh2 {[%clk 0:01:01.8]}
33... Bd6+ {[%clk 0:01:01.7]} 34. g3 {[%clk 0:01:00.2]} 34... Qxa2 {[%clk
0:01:02.2]} 35. Qd2 {[%clk 0:00:52.5]} 35... Qxb3 {[%clk 0:01:01.6]} 36. Qxd6
{[%clk 0:00:42.6]} 36... Qxb2+ {[%clk 0:01:01.9]} 37. Kh1 {[%clk 0:00:42.7]}
37... h6 {[%clk 0:00:55.9]} 38. Qe6 {[%clk 0:00:37.8]} 38... Qe5 {[%clk
0:00:47.1]} 39. Qc8+ {[%clk 0:00:33.8]} 39... Kh7 {[%clk 0:00:47.1]} 40. g4
{[%clk 0:00:31.7]} 40... b3 {[%clk 0:00:45.9]} 0-1

[Event "*** Titled Tuesday Blitz"]
[Site "Chess.com"]
[Date "2020.05.26"]
[Round "4"]
[White "Slovak_fighter2000"]
[Black "attack2mateU"]
[Result "0-1"]
[WhiteElo "2483"]
[BlackElo "2674"]
[TimeControl "180+1"]
[EndTime "10:38:07 PDT"]
[Termination "attack2mateU won by resignation"]

1. d4 {[%clk 0:03:00.9]} 1... Nf6 {[%clk 0:02:58.6]} 2. Nf3 {[%clk 0:03:00.6]}
2... g6 {[%clk 0:02:58.1]} 3. c4 {[%clk 0:03:00.2]} 3... Bg7 {[%clk 0:02:57.9]}
4. Nc3 {[%clk 0:03:00.6]} 4... d5 {[%clk 0:02:58.1]} 5. Bg5 {[%clk 0:03:00.1]}
5... Ne4 {[%clk 0:02:53.8]} 6. cxd5 {[%clk 0:03:00.4]} 6... Nxg5 {[%clk
0:02:51.2]} 7. Nxg5 {[%clk 0:03:01.3]} 7... e6 {[%clk 0:02:49.2]} 8. Qd2 {[%clk
0:03:01.1]} 8... exd5 {[%clk 0:02:48.1]} 9. Qe3+ {[%clk 0:03:00.6]} 9... Kf8
{[%clk 0:02:47.4]} 10. Qf4 {[%clk 0:02:59]} 10... Bf6 {[%clk 0:02:31.4]} 11. h4
{[%clk 0:02:58]} 11... Kg7 {[%clk 0:01:53.6]} 12. e3 {[%clk 0:02:39.3]} 12...
Re8 {[%clk 0:01:31.9]} 13. Bd3 {[%clk 0:02:36.1]} 13... c5 {[%clk 0:01:23.2]}
14. Ne2 {[%clk 0:02:03.7]} 14... h6 {[%clk 0:01:15.5]} 15. Nf3 {[%clk
0:02:02.9]} 15... Nc6 {[%clk 0:01:12.6]} 16. Rc1 {[%clk 0:01:30.2]} 16... cxd4
{[%clk 0:01:02.1]} 17. Nexd4 {[%clk 0:01:26.2]} 17... Nxd4 {[%clk 0:00:59.8]}
18. Nxd4 {[%clk 0:01:17.6]} 18... Be5 {[%clk 0:00:59.2]} 19. Qf3 {[%clk
0:01:03.7]} 19... Bxd4 {[%clk 0:00:59.1]} 20. O-O {[%clk 0:01:01.9]} 20... Bxb2
{[%clk 0:00:54.4]} 21. Rb1 {[%clk 0:01:02]} 21... Bf6 {[%clk 0:00:52.8]} 22. g3
{[%clk 0:01:01.8]} 22... h5 {[%clk 0:00:46.8]} 23. Qf4 {[%clk 0:00:58.6]} 23...
Re7 {[%clk 0:00:38.2]} 24. Rfc1 {[%clk 0:00:57]} 24... Be6 {[%clk 0:00:35.8]}
25. e4 {[%clk 0:00:52.9]} 25... dxe4 {[%clk 0:00:35]} 26. Bxe4 {[%clk
0:00:53.8]} 26... Qd4 {[%clk 0:00:31.8]} 27. Rd1 {[%clk 0:00:49.3]} 27... Qe5
{[%clk 0:00:31.4]} 28. Qe3 {[%clk 0:00:45.7]} 28... Bxa2 {[%clk 0:00:28.9]} 29.
Rb4 {[%clk 0:00:40.3]} 29... a5 {[%clk 0:00:27.4]} 30. Ra4 {[%clk 0:00:39.1]}
30... b5 {[%clk 0:00:21.6]} 31. Rxa2 {[%clk 0:00:37.1]} 31... Qxe4 {[%clk
0:00:21.5]} 32. Qc5 {[%clk 0:00:36.7]} 32... b4 {[%clk 0:00:19.9]} 33. Rxa5
{[%clk 0:00:33.6]} 33... Rxa5 {[%clk 0:00:20.4]} 34. Qxa5 {[%clk 0:00:34.1]}
34... Qc2 {[%clk 0:00:20.4]} 35. Rd6 {[%clk 0:00:31.6]} 35... Re1+ {[%clk
0:00:18.8]} 36. Kg2 {[%clk 0:00:30.8]} 36... Qe4+ {[%clk 0:00:19.3]} 0-1